lending/lending_fUSD_20250719
["ID","MTS","AMOUNT","RATE_DAILY","PERIOD"]
[373249394,1752922299380,-1444.47,0.00021479,2]
[373249395,1752922299389,-716.2,0.00021479,2]
[373249396,1752922299399,-1010.12,0.00021479,2]
[373249397,1752922299409,-480.0,0.00021479,2]
[373249398,1752922299419,-1134.71,0.00021479,2]
[373249399,1752922299429,-1001.22,0.00021479,2]
[373249400,1752922299439,-753.66,0.00021479,2]
[373249401,1752922299449,-1926.46,0.00021479,2]
[373249402,1752922299459,-14763.9,0.00021479,2]
[373249403,1752922299470,-850.67,0.00021479,2]
[373249404,1752922299651,-504.26,0.00021479,2]
[373249405,1752922299680,-2654.42,0.00021479,2]
[373249406,1752922299690,-584.79,0.00021479,2]
[373249407,1752922299700,-3399.67,0.00021479,2]
[373249408,1752922299709,-603.57,0.00021479,2]
[373249409,1752922299719,-736.01,0.00021479,2]
[373249410,1752922299729,-528.72,0.00021479,2]
[373249411,1752922299738,-920.96,0.00021479,2]
[373249412,1752922299748,-582.63,0.00021479,2]
[373249413,1752922299758,-2078.75,0.00021479,2]
[373249414,1752922299768,-684.13,0.00021479,2]
[373249415,1752922299777,-1086.48,0.00021479,2]
[373249416,1752922299786,-823.27,0.00021479,2]
[373249417,1752922299796,-601.91,0.00021479,2]
[373249418,1752922299805,-513.99,0.00021479,2]
[373249419,1752922299815,-2672.28,0.00021479,2]
[373249420,1752922299825,-616.88,0.00021479,2]
[373249421,1752922299835,-1044.3,0.00021479,2]
[373249422,1752922299845,-574.67,0.00021479,2]
[373249423,1752922299855,-480.0,0.00021479,2]
[373249424,1752922299866,-813.79,0.00021479,2]
[373249425,1752922299875,-1310.77,0.00021479,2]
[373249426,1752922299885,-3431.57,0.00021479,2]
[373249427,1752922299895,-858.48,0.00021479,2]
[373249428,1752922299904,-264.44,0.00021479,2]
[373249429,1752922299914,-497.93,0.00021479,2]
[373249430,1752922299924,-1367.34,0.00021479,2]
[373249431,1752922299933,-1524.22,0.00021479,2]
[373249432,1752922299942,-480.0,0.00021479,2]
[373249433,1752922299951,-5259.12,0.00021479,2]
[373249434,1752922299966,-198.90827327,0.00021479,2]
[373249435,1752922299982,-164.57,0.00021489,2]
[373249436,1752922299991,-28580.86222687,0.000215,2]
[373249437,1752922300001,-216.56487315,0.000215,2]
[373249438,1752922300010,-200.0,0.0002151,2]
[373249439,1752922300020,-1811.45,0.00021557,2]
[373249440,1752922300029,-660.0,0.00021584,5]
[373249441,1752922300039,-735.7,0.00021587,2]
[373249442,1752922300049,-3279.57,0.00021587,2]
[373249443,1752922300058,-480.0,0.00021587,2]
[373249444,1752922300067,-500.0,0.00021587,2]
[373249445,1752922300077,-605.49,0.00021589,2]
[373249446,1752922300087,-1000.47,0.00021589,2]
[373249447,1752922300097,-1043.59,0.00021589,2]
[373249448,1752922300107,-604.26,0.00021589,2]
[373249449,1752922300116,-861.59,0.00021589,2]
[373249450,1752922300126,-848.57,0.00021589,2]
[373249451,1752922300136,-511.8,0.00021589,2]
[373249452,1752922300146,-687.69,0.00021589,2]
[373249453,1752922300156,-3297.54,0.00021589,2]
[373249454,1752922300166,-1455.87,0.00021589,2]
[373249455,1752922300175,-495.02,0.00021589,2]
[373249456,1752922300185,-659.75,0.00021589,2]
[373249457,1752922300195,-1574.33,0.00021589,2]
[373249458,1752922300204,-2169.2,0.00021589,2]
[373249459,1752922300214,-3376.92,0.00021589,2]
[373249460,1752922300224,-588.06,0.00021589,2]
[373249461,1752922300233,-493.46,0.00021589,2]
[373249462,1752922300243,-576.04,0.00021589,2]
[373249463,1752922300252,-743.26,0.00021589,2]
[373249464,1752922300262,-1474.2,0.00021589,2]
[373249465,1752922300271,-2172.21,0.00021589,2]
[373249466,1752922300281,-328.68976319,0.00021589,2]
[373249467,1752922300290,-513.05,0.00021589,2]
[373249468,1752922300299,-1462.78,0.00021589,2]
[373249469,1752922300309,-735.14,0.00021589,2]
[373249470,1752922300318,-787.17,0.00021589,2]
[373249471,1752922300327,-1284.12,0.00021589,2]
[373249472,1752922300337,-1107.05,0.00021589,2]
[373249473,1752922300346,-2107.73,0.00021589,2]
[373249474,1752922300355,-681.5,0.00021589,2]
[373249475,1752922300365,-1478.58,0.00021589,2]
[373249476,1752922300374,-2270.49,0.00021589,2]
[373249477,1752922300384,-538.13,0.00021589,2]
[373249478,1752922300394,-1412.35,0.00021589,2]
[373249479,1752922300404,-1430.96,0.00021589,2]
[373249480,1752922300414,-1208.93,0.00021589,2]
[373249481,1752922300423,-548.17,0.00021589,2]
[373249482,1752922300433,-648.45,0.00021589,2]
[373249483,1752922300442,-484.42,0.00021589,2]
[373249484,1752922300451,-643.93,0.00021589,2]
[373249485,1752922300464,-3722.95,0.00021589,2]
[373249486,1752922300474,-519.96,0.00021589,2]
[373249487,1752922300484,-1444.47,0.00021589,2]
[373249488,1752922300494,-716.2,0.00021589,2]
[373249489,1752922300503,-1010.12,0.00021589,2]
[373249490,1752922300512,-480.0,0.00021589,2]
[373249491,1752922300522,-1134.71,0.00021589,2]
[373249492,1752922300531,-1001.22,0.00021589,2]
[373249493,1752922300541,-753.66,0.00021589,2]
[373249494,1752922300550,-1926.46,0.00021589,2]
[373249495,1752922300560,-14763.9,0.00021589,2]
[373249496,1752922300569,-850.67,0.00021589,2]
[373249497,1752922300579,-504.26,0.00021589,2]
[373249498,1752922300589,-584.79,0.00021589,2]
[373249499,1752922300598,-2654.42,0.00021589,2]
[373249500,1752922300608,-3399.67,0.00021589,2]
[373249501,1752922300617,-603.57,0.00021589,2]
[373249502,1752922300626,-736.01,0.00021589,2]
[373249503,1752922300636,-528.72,0.00021589,2]
[373249504,1752922300648,-920.96,0.00021589,2]
[373249505,1752922300657,-582.63,0.00021589,2]
[373249506,1752922300667,-2078.75,0.00021589,2]
[373249507,1752922300676,-684.13,0.00021589,2]
[373249508,1752922300687,-1086.48,0.00021589,2]
[373249509,1752922300696,-823.27,0.00021589,2]
[373249510,1752922300706,-601.91,0.00021589,2]
[373249511,1752922300716,-513.99,0.00021589,2]
[373249512,1752922300726,-2672.28,0.00021589,2]
[373249513,1752922300735,-616.88,0.00021589,2]
[373249514,1752922300744,-1044.3,0.00021589,2]
[373249515,1752922300755,-574.67,0.00021589,2]
[373249516,1752922300765,-386.91592538,0.00021589,2]
[373249517,1752922300775,-813.79,0.00021589,2]
[373249518,1752922300785,-1310.77,0.00021589,2]
[373249519,1752922300794,-3431.57,0.00021589,2]
[373249520,1752922300806,-858.48,0.00021589,2]
[373249521,1752922300815,-497.93,0.00021589,2]
[373249522,1752922300824,-1367.34,0.00021589,2]
[373249523,1752922300834,-1524.22,0.00021589,2]
[373249524,1752922300844,-480.0,0.00021589,2]
[373249525,1752922300854,-5259.12,0.00021589,2]
[373249526,1752922300865,-53109.54756108,0.00021597,2]
[373249527,1752922300875,-2470.24,0.00021616,2]
[373249528,1752922300884,-1000.0,0.00021621,2]
[373249529,1752922300896,-404.4518184,0.00021621,2]
[373249530,1752922300906,-977.22493251,0.00021672,2]
[373249531,1752922300916,-735.7,0.00021697,2]
[373249532,1752922300925,-3279.57,0.00021697,2]
[373249533,1752922300935,-480.0,0.00021697,2]
[373249534,1752922300945,-605.72670442,0.00021698,2]
[373249535,1752922300955,-1000.54573908,0.00021698,2]
[373249536,1752922300964,-1043.74423883,0.00021698,2]
[373249537,1752922300974,-604.36143189,0.00021698,2]
[373249538,1752922300983,-861.61981879,0.00021698,2]
[373249539,1752922300993,-848.74,0.00021698,2]
[373249540,1752922301003,-511.83584309,0.00021698,2]
[373249541,1752922301012,-687.85112497,0.00021698,2]
[373249542,1752922301023,-3297.54443938,0.00021698,2]
[373249543,1752922301031,-1455.92319014,0.00021698,2]
[373249544,1752922301041,-495.03,0.00021698,2]
[373249545,1752922301051,-659.75,0.00021698,2]
[373249546,1752922301060,-1574.47362366,0.00021698,2]
[373249547,1752922301069,-3377.09479334,0.00021698,2]
[373249548,1752922301079,-2169.39554454,0.00021698,2]
[373249549,1752922301090,-588.24435307,0.00021698,2]
[373249550,1752922301099,-493.53000103,0.00021698,2]
[373249551,1752922301109,-576.13200189,0.00021698,2]
[373249552,1752922301118,-743.440001,0.00021698,2]
[373249553,1752922301127,-1474.35968804,0.00021698,2]
[373249554,1752922301136,-2172.37100561,0.00021698,2]
[373249555,1752922301146,-513.27493541,0.00021698,2]
[373249556,1752922301155,-1463.0,0.00021698,2]
[373249557,1752922301165,-735.34,0.00021698,2]
[373249558,1752922301174,-787.20341891,0.00021698,2]
[373249559,1752922301184,-1284.27381703,0.00021698,2]
[373249560,1752922301193,-1107.26189377,0.00021698,2]
[373249561,1752922301202,-2107.90533074,0.00021698,2]
[373249562,1752922301211,-681.51758982,0.00021698,2]
[373249563,1752922301221,-1478.59546416,0.00021698,2]
[373249564,1752922301230,-2270.71131292,0.00021698,2]
[373249565,1752922301239,-538.19,0.00021698,2]
[373249566,1752922301248,-1412.51467609,0.00021698,2]
[373249567,1752922301258,-1431.16217629,0.00021698,2]
[373249568,1752922301268,-1209.02155931,0.00021698,2]
[373249569,1752922301277,-548.18817791,0.00021698,2]
[373249570,1752922301286,-648.64241045,0.00021698,2]
[373249571,1752922301295,-484.54978918,0.00021698,2]
[373249572,1752922301305,-644.11569788,0.00021698,2]
[373249573,1752922301314,-3722.96870265,0.00021698,2]
[373249574,1752922301325,-520.01617354,0.00021698,2]
[373249575,1752922301335,-1444.49,0.00021698,2]
[373249576,1752922301344,-716.3635744,0.00021698,2]
[373249577,1752922301353,-1010.34316011,0.00021698,2]
[373249578,1752922301363,-451.94309113,0.00021698,2]
[373249579,1752922301373,-1134.94126834,0.00021698,2]
[373249580,1752922301382,-1001.26290125,0.00021698,2]
[373249581,1752922301391,-753.76,0.00021698,2]
[373249582,1752922301401,-1926.46715076,0.00021698,2]
[373249583,1752922301410,-14763.99290123,0.00021698,2]
[373249584,1752922301421,-850.72991328,0.00021698,2]
[373249585,1752922301430,-504.47,0.00021698,2]
[373249586,1752922301439,-584.99363868,0.00021698,2]
[373249587,1752922301448,-2654.46102356,0.00021698,2]
[373249588,1752922301458,-3399.84472016,0.00021698,2]
[373249589,1752922301467,-603.77210001,0.00021698,2]
[373249590,1752922301476,-736.2208963,0.00021698,2]
[373249591,1752922301486,-528.86,0.00021698,2]
[373249592,1752922301495,-921.03989636,0.00021698,2]
[373249593,1752922301504,-582.80937434,0.00021698,2]
[373249594,1752922301513,-2078.86955996,0.00021698,2]
[373249595,1752922301523,-684.22596341,0.00021698,2]
[373249596,1752922301532,-1086.64623494,0.00021698,2]
[373249597,1752922301542,-823.37479002,0.00021698,2]
[373249598,1752922301551,-601.94,0.00021698,2]
[373249599,1752922301560,-513.99893264,0.00021698,2]
[373249600,1752922301569,-2672.40398369,0.00021698,2]
[373249601,1752922301578,-616.8822065,0.00021698,2]
[373249602,1752922301587,-1044.52,0.00021698,2]
[373249603,1752922301597,-574.84753628,0.00021698,2]
[373249604,1752922301606,-813.92204533,0.00021698,2]
[373249605,1752922301615,-1310.88959922,0.00021698,2]
[373249606,1752922301624,-3431.80809533,0.00021698,2]
[373249607,1752922301634,-858.68,0.00021698,2]
[373249608,1752922301647,-497.93161089,0.00021698,2]
[373249609,1752922301656,-1367.50149211,0.00021698,2]
[373249610,1752922301665,-1524.45455442,0.00021698,2]
[373249611,1752922301674,-200.55,0.00021698,2]
[373249612,1752922301684,-5259.22533599,0.00021698,2]
[373249613,1752922301693,-324.19,0.00021707,2]
[373249614,1752922301703,-700.0,0.00021712,2]
[373249615,1752922301711,-1300.0,0.00021712,2]
[373249616,1752922301721,-2037.74,0.00021736,2]
[373249617,1752922301730,-2776.42,0.00021748,2]
[373249618,1752922301739,-600.0,0.00021754,2]
[373249619,1752922301749,-3677.06,0.000218,2]
[373249620,1752922301758,-3677.05,0.000218,2]
[373249621,1752922301768,-2432.01,0.000218,2]
[373249622,1752922301777,-735.7,0.00021806,2]
[373249623,1752922301786,-3279.57,0.00021806,2]
[373249624,1752922301796,-480.0,0.00021806,2]
[373249625,1752922301805,-162.61532776,0.00021816,2]
[373249626,1752922301815,-1894.44330795,0.00021816,2]
[373249627,1752922301824,-2000.0,0.00021816,2]
[373249628,1752922301833,-2000.0,0.00021816,2]
[373249629,1752922301845,-2000.0,0.00021816,2]
[373249630,1752922301854,-1000.0,0.00021867,2]
[373249631,1752922301863,-300.0,0.00021867,2]
[373249632,1752922301873,-800.0,0.000219,7]
[373249633,1752922301882,-11724.26,0.00021906,2]
[373249634,1752922301892,-40000.00710706,0.00021906,2]
[373249635,1752922301902,-1688.8,0.00021912,2]
[373249636,1752922301911,-1745.61598771,0.00021916,2]
[373249637,1752922301920,-735.7,0.00021916,2]
[373249638,1752922301929,-3279.57,0.00021916,2]
[373249639,1752922301939,-480.0,0.00021916,2]
[373249640,1752922301949,-5865.0,0.00021917,3]
[373249641,1752922301958,-500.0,0.00021917,2]
[373249642,1752922301967,-500.0,0.00021917,2]
[373249643,1752922301977,-500.0,0.00021917,2]
[373249644,1752922301986,-500.0,0.00021917,2]
[373249645,1752922301996,-500.0,0.00021917,2]
[373249646,1752922302005,-305.75,0.00021917,2]
[373249647,1752922302014,-500.0,0.00021917,2]
[373249648,1752922302024,-500.0,0.00021917,2]
[373249649,1752922302033,-500.0,0.00021917,2]
[373249650,1752922302042,-500.0,0.00021917,2]
[373249651,1752922302053,-500.0,0.00021917,2]
[373249652,1752922302062,-500.0,0.00021917,2]
[373249653,1752922302071,-500.0,0.00021917,2]
[373249654,1752922302081,-500.0,0.00021917,2]
[373249655,1752922302093,-500.0,0.00021917,2]
[373249656,1752922302103,-500.0,0.00021917,2]
[373249657,1752922302112,-500.0,0.00021917,2]
[373249658,1752922302121,-500.0,0.00021917,2]
[373249659,1752922302130,-500.0,0.00021917,2]
[373249660,1752922302140,-500.0,0.00021917,2]
[373249661,1752922302149,-500.0,0.00021917,2]
[373249662,1752922302159,-485.51819251,0.00021917,2]
[373249663,1752922302168,-153.58,0.00021918,2]
[373249664,1752922302178,-5000.0,0.00021918,2]
[373249665,1752922302187,-151.96,0.00021918,2]
[373249666,1752922302197,-1000.0,0.00021918,3]
[373249667,1752922302206,-1000.0,0.00021918,3]
[373249668,1752922302216,-1000.0,0.00021918,3]
[373249669,1752922302226,-1000.0,0.00021918,3]
[373249670,1752922302235,-1000.0,0.00021918,3]
[373249671,1752922302244,-667.0,0.00021918,3]
[373249672,1752922302254,-150.0,0.00021918,2]
[373249673,1752922302263,-205.76087581,0.00021918,2]
[373249674,1752922302273,-94024.41406827,0.0002198,2]
[373249675,1752922302282,-521.50592893,0.00021995,7]
[373249676,1752922302291,-9755.96,0.00022,7]
[373249677,1752922302301,-427987.72,0.00022,7]
[373249678,1752922302310,-2813.78853771,0.00022,2]
[373249679,1752922302320,-22979.95991968,0.00022,2]
[373249680,1752922302329,-210.6,0.00022,2]
[373249681,1752922302340,-476.80070012,0.00022,7]
[373249682,1752922302349,-201.604788,0.00022,2]
[373249683,1752922302359,-4000.0,0.00022,4]
[373249684,1752922302369,-210.82967408,0.00022,3]
[373249685,1752922302378,-2348.38029434,0.00022012,2]
[373249686,1752922302387,-1687.77813,0.0002202,2]
[373249687,1752922302397,-735.7,0.00022026,2]
[373249688,1752922302406,-3279.57,0.00022026,2]
[373249689,1752922302415,-359.12,0.00022026,2]
[373249690,1752922302425,-152.0,0.00022074,3]
[373249691,1752922302434,-200.0,0.000221,2]
[373249692,1752922302444,-234.29830146,0.0002211,2]
[373249693,1752922302454,-735.7,0.00022135,2]
[373249694,1752922302463,-3279.57,0.00022135,2]
[373249695,1752922302472,-1001.0279778,0.00022168,2]
[373249696,1752922302481,-1000.0,0.00022168,2]
[373249697,1752922302491,-735.77981011,0.00022245,2]
[373249698,1752922302500,-3279.582,0.00022245,2]
[373249699,1752922302509,-1400.0,0.0002226,2]
[373249700,1752922302519,-231.28369723,0.00022289,2]
[373249701,1752922302528,-600.0,0.00022302,2]
[373249702,1752922302537,-250.59322925,0.00022329,2]
[373249703,1752922302547,-1000.0,0.00022337,2]
[373249704,1752922302557,-269.28003631,0.00022352,2]
[373249705,1752922302566,-3508.86,0.00022355,4]
[373249706,1752922302575,-1397.65804322,0.00022364,2]
[373249707,1752922302584,-1761.85175379,0.00022364,2]
[373249708,1752922302594,-622.89832642,0.00022364,2]
[373249709,1752922302603,-152.0,0.00022378,4]
[373249710,1752922302612,-150.0,0.00022388,2]
[373249711,1752922302622,-150.0,0.00022389,4]
[373249712,1752922302631,-1838.8,0.00022415,2]
[373249713,1752922302643,-300.0,0.00022415,2]
[373249714,1752922302653,-3000.0,0.000225,2]
[373249715,1752922302662,-3000.0,0.000225,2]
[373249716,1752922302671,-3000.0,0.000225,2]
[373249717,1752922302680,-1512.57,0.000225,2]
[373249718,1752922302690,-34575.35649686,0.000225,2]
[373249719,1752922302699,-200.0,0.000225,2]
[373249720,1752922302708,-200.0,0.000225,2]
[373249721,1752922302718,-200.0,0.000225,2]
[373249722,1752922302727,-200.0,0.000225,2]
[373249723,1752922302736,-200.0,0.000225,2]
[373249724,1752922302746,-200.0,0.000225,2]
[373249725,1752922302756,-200.0,0.000225,2]
[373249726,1752922302765,-200.0,0.000225,2]
[373249727,1752922302774,-200.0,0.000225,2]
[373249728,1752922302785,-200.0,0.000225,2]
[373249729,1752922302794,-200.0,0.000225,2]
[373249730,1752922302803,-200.0,0.000225,2]
[373249731,1752922302812,-200.0,0.000225,2]
[373249732,1752922302821,-200.0,0.000225,2]
[373249733,1752922302830,-200.0,0.000225,2]
[373249734,1752922302840,-200.0,0.000225,2]
[373249735,1752922302849,-200.0,0.000225,2]
[373249736,1752922302859,-200.0,0.000225,2]
[373249737,1752922302868,-200.0,0.000225,2]
[373249738,1752922302877,-200.0,0.000225,2]
[373249739,1752922302886,-200.0,0.000225,2]
[373249740,1752922302896,-200.0,0.000225,2]
[373249741,1752922302905,-200.0,0.000225,2]
[373249742,1752922302914,-200.0,0.000225,2]
[373249743,1752922302924,-200.0,0.000225,2]
[373249744,1752922302933,-200.0,0.000225,2]
[373249745,1752922302943,-200.0,0.000225,2]
[373249746,1752922302952,-200.0,0.000225,2]
[373249747,1752922302962,-179.0,0.000225,2]
[373249748,1752922302971,-500.0,0.000225,13]
[373249749,1752922302980,-500.0,0.000225,13]
[373249750,1752922302989,-500.0,0.000225,13]
[373249751,1752922302999,-500.0,0.000225,13]
[373249752,1752922303008,-500.0,0.000225,13]
[373249753,1752922303017,-500.0,0.000225,13]
[373249754,1752922303026,-500.0,0.000225,13]
[373249755,1752922303035,-500.0,0.000225,13]
[373249756,1752922303044,-500.0,0.000225,13]
[373249757,1752922303053,-500.0,0.000225,13]
[373249758,1752922303063,-500.0,0.000225,13]
[373249759,1752922303073,-500.0,0.000225,13]
[373249760,1752922303082,-500.0,0.000225,13]
[373249761,1752922303092,-500.0,0.000225,13]
[373249762,1752922303101,-500.0,0.000225,13]
[373249763,1752922303110,-500.0,0.000225,13]
[373249764,1752922303120,-500.0,0.000225,13]
[373249765,1752922303129,-500.0,0.000225,13]
[373249766,1752922303139,-500.0,0.000225,13]
[373249767,1752922303148,-500.0,0.000225,13]
[373249768,1752922303344,-500.0,0.000225,13]
[373249769,1752922303354,-500.0,0.000225,13]
[373249770,1752922303364,-500.0,0.000225,13]
[373249771,1752922303373,-500.0,0.000225,13]
[373249772,1752922303383,-500.0,0.000225,13]
[373249773,1752922303392,-500.0,0.000225,13]
[373249774,1752922303401,-500.0,0.000225,13]
[373249775,1752922303410,-500.0,0.000225,13]
[373249776,1752922303421,-500.0,0.000225,13]
[373249777,1752922303431,-500.0,0.000225,13]
[373249778,1752922303440,-500.0,0.000225,13]
[373249779,1752922303449,-500.0,0.000225,13]
[373249780,1752922303459,-500.0,0.000225,13]
[373249781,1752922303468,-500.0,0.000225,13]
[373249782,1752922303477,-500.0,0.000225,13]
[373249783,1752922303486,-500.0,0.000225,13]
[373249784,1752922303495,-500.0,0.000225,13]
[373249785,1752922303505,-500.0,0.000225,13]
[373249786,1752922303514,-500.0,0.000225,13]
[373249787,1752922303524,-500.0,0.000225,13]
[373249788,1752922303533,-500.0,0.000225,13]
[373249789,1752922303543,-500.0,0.000225,13]
[373249790,1752922303553,-500.0,0.000225,13]
[373249791,1752922303562,-500.0,0.000225,13]
[373249792,1752922303572,-500.0,0.000225,13]
[373249793,1752922303581,-500.0,0.000225,13]
[373249794,1752922303591,-500.0,0.000225,13]
[373249795,1752922303600,-500.0,0.000225,13]
[373249796,1752922303610,-500.0,0.000225,13]
[373249797,1752922303619,-500.0,0.000225,13]
[373249798,1752922303627,-500.0,0.000225,13]
[373249799,1752922303636,-500.0,0.000225,13]
[373249800,1752922303646,-500.0,0.000225,13]
[373249801,1752922303655,-500.0,0.000225,13]
[373249802,1752922303666,-500.0,0.000225,13]
[373249803,1752922303675,-500.0,0.000225,13]
[373249804,1752922303684,-500.0,0.000225,13]
[373249805,1752922303694,-500.0,0.000225,13]
[373249806,1752922303703,-500.0,0.000225,13]
[373249807,1752922303713,-500.0,0.000225,13]
[373249808,1752922303723,-500.0,0.000225,13]
[373249809,1752922303732,-500.0,0.000225,13]
[373249810,1752922303742,-500.0,0.000225,13]
[373249811,1752922303752,-500.0,0.000225,13]
[373249812,1752922303761,-500.0,0.000225,13]
[373249813,1752922303770,-500.0,0.000225,13]
[373249814,1752922303780,-500.0,0.000225,13]
[373249815,1752922303789,-500.0,0.000225,13]
[373249816,1752922303798,-500.0,0.000225,13]
[373249817,1752922303808,-500.0,0.000225,13]
[373249818,1752922303817,-500.0,0.000225,13]
[373249819,1752922303827,-500.0,0.000225,13]
[373249820,1752922303838,-500.0,0.000225,13]
[373249821,1752922303847,-500.0,0.000225,13]
[373249822,1752922303856,-500.0,0.000225,13]
[373249823,1752922303866,-500.0,0.000225,13]
[373249824,1752922303875,-500.0,0.000225,13]
[373249825,1752922303885,-500.0,0.000225,13]
[373249826,1752922303895,-577.0,0.000225,13]
[373249827,1752922303905,-200.0,0.0002251,7]
[373249828,1752922303914,-3025.55981949,0.0002252,2]
[373249829,1752922303923,-1510.79,0.00022562,2]
[373249830,1752922303933,-349.41,0.00022562,2]
[373249831,1752922303943,-1011.7,0.00022589,7]
[373249832,1752922303953,-1011.7,0.00022589,7]
[373249833,1752922303962,-1011.7,0.00022589,7]
[373249834,1752922303971,-1011.7,0.00022589,7]
[373249835,1752922303981,-165.0,0.000226,2]
[373249836,1752922303990,-1000.0,0.00022611,2]
[373249837,1752922304000,-1000.0,0.00022624,2]
[373249838,1752922304009,-208.0,0.0002264,2]
[373249839,1752922304019,-212.0,0.0002264,2]
[373249840,1752922304028,-228.17,0.00022655,2]
[373249841,1752922304038,-1000.0,0.0002267,2]
[373249842,1752922304047,-514.92889404,0.0002268,2]
[373249843,1752922304056,-152.0,0.00022683,5]
[373249844,1752922304065,-508.0,0.00022688,8]
[373249845,1752922304075,-1000.0,0.000227,2]
[373249846,1752922304084,-509.91038374,0.0002271,2]
[373249847,1752922304095,-1000.0,0.00022712,2]
[373249848,1752922304104,-500.0,0.00022747,5]
[373249849,1752922304113,-1000.0,0.0002277,2]
[373249850,1752922304125,-1000.0,0.00022792,2]
[373249851,1752922304140,-700.0,0.00022808,2]
[373249852,1752922304150,-1300.0,0.00022808,2]
[373249853,1752922304159,-150.0,0.00022822,2]
[373249854,1752922304168,-600.0,0.0002285,2]
[373249855,1752922304178,-1011.7,0.00022863,7]
[373249856,1752922304187,-1011.7,0.00022863,7]
[373249857,1752922304197,-1001.02583071,0.0002287,2]
[373249858,1752922304206,-758.3955956,0.0002287,2]
[373249859,1752922304215,-150.0,0.00022955,2]
[373249860,1752922304225,-300.0,0.00022963,2]
[373249861,1752922304236,-1000.0,0.0002297,2]
[373249862,1752922304246,-500.0,0.0002297,2]
[373249863,1752922304256,-500.0,0.0002297,2]
[373249864,1752922304266,-1000.0,0.0002297,2]
[373249865,1752922304275,-500.0,0.0002297,2]
[373249866,1752922304285,-1000.0,0.0002297,2]
[373249867,1752922304295,-1000.0,0.0002297,2]
[373249868,1752922304304,-1000.0,0.0002297,2]
[373249869,1752922304314,-500.0,0.0002297,2]
[373249870,1752922304323,-500.0,0.0002297,2]
[373249871,1752922304333,-2939.458,0.0002297,2]
[373249872,1752922304344,-168.193,0.0002297,2]
[373249873,1752922304353,-208.0,0.0002298,2]
[373249874,1752922304363,-212.0,0.0002298,2]
[373249875,1752922304372,-152.0,0.00022988,6]
[373249876,1752922304381,-3524.33,0.00023,2]
[373249877,1752922304390,-428.82823041,0.00023,2]
[373249878,1752922304401,-954.040466,0.00023,24]
[373249879,1752922304410,-900.0,0.00023,8]
[373249880,1752922304419,-900.0,0.00023,8]
[373249881,1752922304428,-900.0,0.00023,8]
[373249882,1752922304437,-900.0,0.00023,8]
[373249883,1752922304447,-900.0,0.00023,8]
[373249884,1752922304456,-900.0,0.00023,8]
[373249885,1752922304465,-900.0,0.00023,8]
[373249886,1752922304474,-900.0,0.00023,8]
[373249887,1752922304484,-339.34144231,0.00023,8]
[373249888,1752922304493,-900.0,0.00023,8]
[373249889,1752922304502,-900.0,0.00023,8]
[373249890,1752922304511,-900.0,0.00023,8]
[373249891,1752922304521,-900.0,0.00023,8]
[373249892,1752922304531,-900.0,0.00023,8]
[373249893,1752922304541,-900.0,0.00023,8]